lending/lending_fUSD_20250808
["ID","MTS","AMOUNT","RATE_DAILY","PERIOD"]
[377915913,1754613131996,-984.93,0.00021643,2]
[377915914,1754613132006,-330.25724942,0.00021643,2]
[377915915,1754613132016,-1073.05,0.00021643,2]
[377915916,1754613132025,-1178.77,0.00021643,2]
[377915917,1754613132035,-400.0,0.00021643,2]
[377915918,1754613132044,-828.34,0.00021643,2]
[377915919,1754613132054,-400.0,0.00021643,2]
[377915920,1754613132063,-400.0,0.00021643,2]
[377915921,1754613132072,-400.0,0.00021643,2]
[377915922,1754613132082,-400.0,0.00021643,2]
[377915923,1754613132091,-812.28,0.00021643,2]
[377915924,1754613132103,-927.28,0.00021643,2]
[377915925,1754613132112,-400.0,0.00021643,2]
[377915926,1754613132121,-400.0,0.00021643,2]
[377915927,1754613132133,-436.87892087,0.00021643,2]
[377915928,1754613132142,-953.96,0.00021643,2]
[377915929,1754613132151,-400.0,0.00021643,2]
[377915930,1754613132161,-400.0,0.00021643,2]
[377915931,1754613132170,-861.71,0.00021643,2]
[377915932,1754613132180,-802.6,0.00021643,2]
[377915933,1754613132199,-400.0,0.00021643,2]
[377915934,1754613132209,-580.75,0.00021643,2]
[377915935,1754613132218,-400.0,0.00021643,2]
[377915936,1754613132227,-571.8,0.00021643,2]
[377915937,1754613132236,-400.0,0.00021643,2]
[377915938,1754613132246,-400.0,0.00021643,2]
[377915939,1754613132354,-1017.49,0.00021643,2]
[377915940,1754613132364,-480.71,0.00021643,2]
[377915941,1754613132374,-400.0,0.00021643,2]
[377915942,1754613132387,-403.89,0.00021643,2]
[377915943,1754613132397,-400.0,0.00021643,2]
[377915944,1754613132407,-400.0,0.00021643,2]
[377915945,1754613132418,-400.0,0.00021643,2]
[377915946,1754613132428,-1379.73,0.00021643,2]
[377915947,1754613132437,-1290.36,0.00021643,2]
[377915948,1754613132446,-400.0,0.00021643,2]
[377915949,1754613132456,-400.0,0.00021643,2]
[377915950,1754613132466,-560.12,0.00021643,2]
[377915951,1754613132475,-1326.45,0.00021643,2]
[377915952,1754613132484,-1037.58,0.00021643,2]
[377915953,1754613132494,-400.0,0.00021643,2]
[377915954,1754613132503,-570.53,0.00021643,2]
[377915955,1754613132512,-551.88,0.00021643,2]
[377915956,1754613132522,-624.79,0.00021643,2]
[377915957,1754613132532,-459.48,0.00021643,2]
[377915958,1754613132541,-912.6,0.00021643,2]
[377915959,1754613132551,-453.86,0.00021643,2]
[377915960,1754613132560,-845.43,0.00021643,2]
[377915961,1754613132570,-610.33,0.00021643,2]
[377915962,1754613132580,-1543.29,0.00021643,2]
[377915963,1754613132589,-802.15,0.00021643,2]
[377915964,1754613132599,-405.06,0.00021643,2]
[377915965,1754613132610,-400.0,0.00021643,2]
[377915966,1754613132620,-400.0,0.00021643,2]
[377915967,1754613132631,-1052.0,0.00021643,2]
[377915968,1754613132641,-1340.86,0.00021643,2]
[377915969,1754613132651,-400.0,0.00021643,2]
[377915970,1754613132661,-950.22,0.00021643,2]
[377915971,1754613132671,-903.46,0.00021643,2]
[377915972,1754613132681,-1188.56,0.00021643,2]
[377915973,1754613132691,-252.83263375,0.00021643,2]
[377915974,1754613132700,-400.0,0.00021643,2]
[377915975,1754613132711,-511.85,0.00021643,2]
[377915976,1754613132721,-502.43,0.00021643,2]
[377915977,1754613132730,-469.08,0.00021643,2]
[377915978,1754613132739,-538.68,0.00021643,2]
[377915979,1754613132749,-431.81,0.00021643,2]
[377915980,1754613132759,-415.03,0.00021643,2]
[377915981,1754613132768,-400.0,0.00021643,2]
[377915982,1754613132778,-400.0,0.00021643,2]
[377915983,1754613132788,-400.0,0.00021643,2]
[377915984,1754613132799,-652.84,0.00021643,2]
[377915985,1754613132808,-448.34,0.00021643,2]
[377915986,1754613132818,-613.1,0.00021643,2]
[377915987,1754613132827,-400.0,0.00021643,2]
[377915988,1754613132837,-400.0,0.00021643,2]
[377915989,1754613132847,-1054.59,0.00021643,2]
[377915990,1754613132857,-606.31,0.00021643,2]
[377915991,1754613132870,-468.72,0.00021643,2]
[377915992,1754613132882,-400.0,0.00021643,2]
[377915993,1754613132892,-560.03,0.00021643,2]
[377915994,1754613132903,-400.0,0.00021643,2]
[377915995,1754613132913,-1129.63,0.00021643,2]
[377915996,1754613132923,-744.37,0.00021643,2]
[377915997,1754613132933,-771.07,0.00021643,2]
[377915998,1754613132943,-1372.41,0.00021643,2]
[377915999,1754613132953,-830.78,0.00021643,2]
[377916000,1754613132963,-643.55,0.00021643,2]
[377916001,1754613132973,-460.51664778,0.00021643,2]
[377916002,1754613132982,-400.0,0.00021643,2]
[377916003,1754613132992,-1290.29,0.00021643,2]
[377916004,1754613133001,-463.32,0.00021643,2]
[377916005,1754613133011,-400.0,0.00021643,2]
[377916006,1754613133021,-400.0,0.00021643,2]
[377916007,1754613133030,-400.0,0.00021643,2]
[377916008,1754613133040,-400.0,0.00021643,2]
[377916009,1754613133050,-400.0,0.00021643,2]
[377916010,1754613133059,-792.51,0.00021643,2]
[377916011,1754613133069,-720.13,0.00021643,2]
[377916012,1754613133079,-526.14,0.00021643,2]
[377916013,1754613133089,-690.34,0.00021643,2]
[377916014,1754613133099,-767.24,0.00021643,2]
[377916015,1754613133108,-784.03,0.00021643,2]
[377916016,1754613133117,-619.45,0.00021643,2]
[377916017,1754613133127,-592.46,0.00021643,2]
[377916018,1754613133137,-838.34,0.00021643,2]
[377916019,1754613133147,-400.0,0.00021643,2]
[377916020,1754613133156,-400.0,0.00021643,2]
[377916021,1754613133165,-400.0,0.00021643,2]
[377916022,1754613133174,-430.58,0.00021643,2]
[377916023,1754613133184,-400.0,0.00021643,2]
[377916024,1754613133193,-400.0,0.00021643,2]
[377916025,1754613133203,-400.0,0.00021643,2]
[377916026,1754613133213,-400.0,0.00021643,2]
[377916027,1754613133223,-887.56,0.00021643,2]
[377916028,1754613133233,-400.0,0.00021643,2]
[377916029,1754613133243,-1398.35,0.00021643,2]
[377916030,1754613133256,-1086.27,0.00021643,2]
[377916031,1754613133265,-1137.31,0.00021643,2]
[377916032,1754613133276,-488.07,0.00021643,2]
[377916033,1754613133285,-400.0,0.00021643,2]
[377916034,1754613133294,-433.15,0.00021643,2]
[377916035,1754613133304,-644.96,0.00021643,2]
[377916036,1754613133315,-969.77,0.00021643,2]
[377916037,1754613133325,-711.54,0.00021643,2]
[377916038,1754613133335,-615.2,0.00021643,2]
[377916039,1754613133345,-1326.15,0.00021643,2]
[377916040,1754613133356,-580.71,0.00021643,2]
[377916041,1754613133366,-745.61,0.00021643,2]
[377916042,1754613133375,-777.93,0.00021643,2]
[377916043,1754613133388,-400.0,0.00021643,2]
[377916044,1754613133397,-533.67,0.00021643,2]
[377916045,1754613133406,-1146.04,0.00021643,2]
[377916046,1754613133416,-400.0,0.00021643,2]
[377916047,1754613133426,-1764.53,0.00021643,2]
[377916048,1754613133436,-400.0,0.00021643,2]
[377916049,1754613133446,-678.35,0.00021643,2]
[377916050,1754613133455,-595.92,0.00021643,2]
[377916051,1754613133465,-400.0,0.00021643,2]
[377916052,1754613133474,-1128.98,0.00021643,2]
[377916053,1754613133484,-1058.02,0.00021643,2]
[377916054,1754613133493,-460.25,0.00021643,2]
[377916055,1754613133502,-467.91,0.00021643,2]
[377916056,1754613133511,-498.62,0.00021643,2]
[377916057,1754613133521,-684.85,0.00021643,2]
[377916058,1754613133530,-400.0,0.00021643,2]
[377916059,1754613133540,-1822.08,0.00021643,2]
[377916060,1754613133549,-519.11,0.00021643,2]
[377916061,1754613133559,-834.5,0.00021643,2]
[377916062,1754613133568,-400.0,0.00021643,2]
[377916063,1754613133578,-400.0,0.00021643,2]
[377916064,1754613133588,-400.0,0.00021643,2]
[377916065,1754613133598,-431.49,0.00021643,2]
[377916066,1754613133607,-400.0,0.00021643,2]
[377916067,1754613133617,-400.0,0.00021643,2]
[377916068,1754613133627,-756.51,0.00021643,2]
[377916069,1754613133638,-474.3,0.00021643,2]
[377916070,1754613133647,-753.02,0.00021643,2]
[377916071,1754613133657,-400.0,0.00021643,2]
[377916072,1754613133668,-400.0,0.00021643,2]
[377916073,1754613133678,-400.0,0.00021643,2]
[377916074,1754613133689,-530.37,0.00021643,2]
[377916075,1754613133701,-1312.14,0.00021643,2]
[377916076,1754613133713,-400.0,0.00021643,2]
[377916077,1754613133724,-664.1,0.00021643,2]
[377916078,1754613133734,-723.03,0.00021643,2]
[377916079,1754613133744,-488.75,0.00021643,2]
[377916080,1754613133754,-753.14,0.00021643,2]
[377916081,1754613133763,-400.0,0.00021643,2]
[377916082,1754613133773,-481.93,0.00021643,2]
[377916083,1754613133782,-1362.2,0.00021643,2]
[377916084,1754613133792,-681.29,0.00021643,2]
[377916085,1754613133803,-1202.92,0.00021643,2]
[377916086,1754613133813,-400.0,0.00021643,2]
[377916087,1754613133823,-908.09,0.00021643,2]
[377916088,1754613133833,-400.0,0.00021643,2]
[377916089,1754613133843,-1356.82,0.00021643,2]
[377916090,1754613133854,-642.93,0.00021643,2]
[377916091,1754613133865,-558.14,0.00021643,2]
[377916092,1754613133877,-400.0,0.00021643,2]
[377916093,1754613133888,-473.3,0.00021643,2]
[377916094,1754613133899,-857.38,0.00021643,2]
[377916095,1754613133909,-600.87,0.00021643,2]
[377916096,1754613133919,-400.0,0.00021643,2]
[377916097,1754613133929,-1113.28,0.00021643,2]
[377916098,1754613133942,-1063.89,0.00021643,2]
[377916099,1754613133952,-766.74,0.00021643,2]
[377916100,1754613133961,-702.23,0.00021643,2]
[377916101,1754613133971,-400.0,0.00021643,2]
[377916102,1754613133980,-697.81,0.00021643,2]
[377916103,1754613133990,-593.88,0.00021643,2]
[377916104,1754613133999,-565.06,0.00021643,2]
[377916105,1754613134010,-1013.85,0.00021643,2]
[377916106,1754613134019,-835.59,0.00021643,2]
[377916107,1754613134029,-787.56,0.00021643,2]
[377916108,1754613134039,-1070.57,0.00021643,2]
[377916109,1754613134049,-714.37,0.00021643,2]
[377916110,1754613134058,-805.74,0.00021643,2]
[377916111,1754613134067,-400.0,0.00021643,2]
[377916112,1754613134077,-400.0,0.00021643,2]
[377916113,1754613134086,-400.0,0.00021643,2]
[377916114,1754613134096,-446.94,0.00021643,2]
[377916115,1754613134105,-518.84,0.00021643,2]
[377916116,1754613134115,-634.1,0.00021643,2]
[377916117,1754613134125,-997.03,0.00021643,2]
[377916118,1754613134137,-668.96,0.00021643,2]
[377916119,1754613134147,-1310.15,0.00021643,2]
[377916120,1754613134157,-602.12,0.00021643,2]
[377916121,1754613134168,-542.82,0.00021643,2]
[377916122,1754613134178,-823.13,0.00021643,2]
[377916123,1754613134187,-539.85,0.00021643,2]
[377916124,1754613134197,-1520.38,0.00021643,2]
[377916125,1754613134206,-677.81,0.00021643,2]
[377916126,1754613134216,-400.0,0.00021643,2]
[377916127,1754613134225,-1166.4,0.00021643,2]
[377916128,1754613134234,-400.0,0.00021643,2]
[377916129,1754613134244,-440.74,0.00021643,2]
[377916130,1754613134253,-400.0,0.00021643,2]
[377916131,1754613134263,-400.0,0.00021643,2]
[377916132,1754613134272,-1322.15,0.00021643,2]
[377916133,1754613134282,-400.0,0.00021643,2]
[377916134,1754613134291,-400.0,0.00021643,2]
[377916135,1754613134300,-400.0,0.00021643,2]
[377916136,1754613134310,-439.53,0.00021643,2]
[377916137,1754613134320,-400.0,0.00021643,2]
[377916138,1754613134329,-729.31,0.00021643,2]
[377916139,1754613134339,-455.12,0.00021643,2]
[377916140,1754613134348,-400.0,0.00021643,2]
[377916141,1754613134358,-1225.17,0.00021643,2]
[377916142,1754613134367,-400.0,0.00021643,2]
[377916143,1754613134376,-1460.14,0.00021643,2]
[377916144,1754613134390,-400.0,0.00021643,2]
[377916145,1754613134399,-172.06171228,0.00021643,2]
[377916146,1754613134409,-535.87,0.00021643,2]
[377916147,1754613134419,-400.0,0.00021643,2]
[377916148,1754613134428,-437.66189783,0.00021643,2]
[377916149,1754613134438,-235.26,0.00021643,2]
[377916150,1754613134447,-400.0,0.00021643,2]
[377916151,1754613134457,-965.56,0.00021643,2]
[377916152,1754613134467,-400.0,0.00021643,2]
[377916153,1754613134476,-473.14,0.00021643,2]
[377916154,1754613134486,-1112.82,0.00021643,2]
[377916155,1754613134496,-1239.98,0.00021643,2]
[377916156,1754613134506,-400.0,0.00021643,2]
[377916157,1754613134516,-592.4,0.00021643,2]
[377916158,1754613134527,-400.0,0.00021643,2]
[377916159,1754613134537,-400.0,0.00021643,2]
[377916160,1754613134547,-1121.49,0.00021643,2]
[377916161,1754613134556,-546.56,0.00021643,2]
[377916162,1754613134566,-412.93,0.00021643,2]
[377916163,1754613134575,-400.0,0.00021643,2]
[377916164,1754613134587,-1332.23,0.00021643,2]
[377916165,1754613134596,-2373.45,0.00021643,2]
[377916166,1754613134605,-867.66,0.00021643,2]
[377916167,1754613134616,-1921.83,0.00021643,2]
[377916168,1754613134625,-400.0,0.00021643,2]
[377916169,1754613134636,-400.0,0.00021643,2]
[377916170,1754613134646,-400.0,0.00021643,2]
[377916171,1754613134656,-477.33,0.00021643,2]
[377916172,1754613134666,-586.09,0.00021643,2]
[377916173,1754613134676,-633.66,0.00021643,2]
[377916174,1754613134687,-400.0,0.00021643,2]
[377916175,1754613134697,-434.62,0.00021643,2]
[377916176,1754613134706,-394.95193367,0.00021643,2]
[377916177,1754613134716,-400.0,0.00021643,2]
[377916178,1754613134725,-1031.22,0.00021643,2]
[377916179,1754613134735,-400.0,0.00021643,2]
[377916180,1754613134745,-591.29,0.00021643,2]
[377916181,1754613134755,-1239.8,0.00021643,2]
[377916182,1754613134765,-419.72,0.00021643,2]
[377916183,1754613134775,-765.3,0.00021643,2]
[377916184,1754613134785,-433.91,0.00021643,2]
[377916185,1754613134795,-1091.91,0.00021643,2]
[377916186,1754613134805,-718.67,0.00021643,2]
[377916187,1754613134816,-400.0,0.00021643,2]
[377916188,1754613134825,-942.73,0.00021643,2]
[377916189,1754613134835,-400.0,0.00021643,2]
[377916190,1754613134845,-655.59,0.00021643,2]
[377916191,1754613134855,-549.44,0.00021643,2]
[377916192,1754613134867,-706.48,0.00021643,2]
[377916193,1754613134878,-798.23,0.00021643,2]
[377916194,1754613134890,-1153.34,0.00021643,2]
[377916195,1754613134902,-1177.75,0.00021643,2]
[377916196,1754613134912,-549.94,0.00021643,2]
[377916197,1754613134922,-560.12,0.00021643,2]
[377916198,1754613134932,-819.45,0.00021643,2]
[377916199,1754613134944,-895.98,0.00021643,2]
[377916200,1754613134954,-804.91,0.00021643,2]
[377916201,1754613134965,-472.38,0.00021643,2]
[377916202,1754613134975,-400.0,0.00021643,2]
[377916203,1754613134985,-400.0,0.00021643,2]
[377916204,1754613134995,-638.56,0.00021643,2]
[377916205,1754613135005,-1000.0,0.00021643,2]
[377916206,1754613135015,-1258.89,0.00021643,2]
[377916207,1754613135025,-352.152162,0.00021643,2]
[377916208,1754613135035,-593.81,0.00021643,2]
[377916209,1754613135045,-400.0,0.00021643,2]
[377916210,1754613135056,-352.152162,0.00021643,2]
[377916211,1754613135066,-400.0,0.00021643,2]
[377916212,1754613135075,-622.14,0.00021643,2]
[377916213,1754613135085,-420.834801,0.00021643,2]
[377916214,1754613135095,-420.834801,0.00021643,2]
[377916215,1754613135105,-1287.29,0.00021643,2]
[377916216,1754613135115,-1105.48,0.00021643,2]
[377916217,1754613135125,-1707.57,0.00021643,2]
[377916218,1754613135138,-1063.27,0.00021643,2]
[377916219,1754613135147,-1515.17,0.00021643,2]
[377916220,1754613135157,-1621.03,0.00021643,2]
[377916221,1754613135167,-400.0,0.00021643,2]
[377916222,1754613135176,-400.0,0.00021643,2]
[377916223,1754613135186,-400.0,0.00021643,2]
[377916224,1754613135196,-577.01,0.00021643,2]
[377916225,1754613135206,-400.0,0.00021643,2]
[377916226,1754613135216,-877.01,0.00021643,2]
[377916227,1754613135226,-400.0,0.00021643,2]
[377916228,1754613135236,-400.0,0.00021643,2]
[377916229,1754613135246,-1622.23,0.00021643,2]
[377916230,1754613135256,-400.0,0.00021643,2]
[377916231,1754613135266,-1480.91,0.00021643,2]
[377916232,1754613135276,-521.939013,0.00021643,2]
[377916233,1754613135286,-400.0,0.00021643,2]
[377916234,1754613135296,-981.54,0.00021643,2]
[377916235,1754613135306,-400.0,0.00021643,2]
[377916236,1754613135316,-1040.41,0.00021643,2]
[377916237,1754613135326,-447.12,0.00021643,2]
[377916238,1754613135336,-400.0,0.00021643,2]
[377916239,1754613135346,-1390.26,0.00021643,2]
[377916240,1754613135356,-400.0,0.00021643,2]
[377916241,1754613135365,-246.791616,0.00021643,2]
[377916242,1754613135375,-246.791616,0.00021643,2]
[377916243,1754613135387,-1312.79,0.00021643,2]
[377916244,1754613135397,-1460.09,0.00021643,2]
[377916245,1754613135407,-446.5,0.00021643,2]
[377916246,1754613135418,-806.42,0.00021643,2]
[377916247,1754613135429,-783.24,0.00021643,2]
[377916248,1754613135439,-680.12,0.00021643,2]
[377916249,1754613135449,-400.0,0.00021643,2]
[377916250,1754613135460,-998.91,0.00021643,2]
[377916251,1754613135469,-436.39,0.00021643,2]
[377916252,1754613135492,-633.1,0.00021643,2]
[377916253,1754613135502,-400.0,0.00021643,2]
[377916254,1754613135512,-408.97,0.00021643,2]
[377916255,1754613135521,-803.71,0.00021643,2]
[377916256,1754613135531,-400.0,0.00021643,2]
[377916257,1754613135541,-1211.14,0.00021643,2]
[377916258,1754613135550,-832.28,0.00021643,2]
[377916259,1754613135560,-327.35486993,0.00021643,2]
[377916260,1754613135570,-400.0,0.00021643,2]
[377916261,1754613135580,-400.0,0.00021643,2]
[377916262,1754613135590,-400.0,0.00021643,2]
[377916263,1754613135600,-400.0,0.00021643,2]
[377916264,1754613135609,-634.61,0.00021643,2]
[377916265,1754613135619,-400.0,0.00021643,2]
[377916266,1754613135633,-1042.43,0.00021643,2]
[377916267,1754613135643,-411.96,0.00021643,2]
[377916268,1754613135653,-707.32,0.00021643,2]
[377916269,1754613135662,-455.66,0.00021643,2]
[377916270,1754613135672,-400.0,0.00021643,2]
[377916271,1754613135682,-854.23,0.00021643,2]
[377916272,1754613135692,-9366.87,0.00021643,2]
[377916273,1754613135702,-1513.02,0.00021643,2]
[377916274,1754613135711,-484.41,0.00021643,2]
[377916275,1754613135722,-801.68,0.00021643,2]
[377916276,1754613135732,-447.08,0.00021643,2]
[377916277,1754613135742,-1103.08,0.00021643,2]
[377916278,1754613135752,-400.0,0.00021643,2]
[377916279,1754613135762,-400.0,0.00021643,2]
[377916280,1754613135772,-1785.26,0.00021643,2]
[377916281,1754613135782,-400.0,0.00021643,2]
[377916282,1754613135792,-1209.1,0.00021643,2]
[377916283,1754613135802,-400.0,0.00021643,2]
[377916284,1754613135812,-512.05,0.00021643,2]
[377916285,1754613135822,-1338.39,0.00021643,2]
[377916286,1754613135832,-837.98,0.00021643,2]
[377916287,1754613135842,-400.0,0.00021643,2]
[377916288,1754613135853,-467.43,0.00021643,2]
[377916289,1754613135865,-400.0,0.00021643,2]
[377916290,1754613135875,-588.83,0.00021643,2]
[377916291,1754613135887,-1005.96,0.00021643,2]
[377916292,1754613135898,-602.9,0.00021643,2]
[377916293,1754613135911,-1973.33,0.00021643,2]
[377916294,1754613135920,-969.26,0.00021643,2]
[377916295,1754613135930,-703.47,0.00021643,2]
[377916296,1754613135942,-1304.83,0.00021643,2]
[377916297,1754613135952,-2027.86,0.00021643,2]
[377916298,1754613135962,-1312.78,0.00021643,2]
[377916299,1754613135972,-688.65,0.00021643,2]
[377916300,1754613135982,-173.0,0.00021643,2]
[377916301,1754613135992,-2100.2,0.00021643,2]
[377916302,1754613136002,-1134.28,0.00021643,2]
[377916303,1754613136012,-400.0,0.00021643,2]
[377916304,1754613136022,-1569.86,0.00021643,2]
[377916305,1754613136033,-529.24,0.00021643,2]
[377916306,1754613136045,-1383.67,0.00021643,2]
[377916307,1754613136055,-400.0,0.00021643,2]
[377916308,1754613136064,-812.54,0.00021643,2]
[377916309,1754613136074,-871.51,0.00021643,2]
[377916310,1754613136083,-755.43,0.00021643,2]
[377916311,1754613136093,-801.5,0.00021643,2]
[377916312,1754613136103,-603.98,0.00021643,2]
[377916313,1754613136113,-400.0,0.00021643,2]
[377916314,1754613136122,-1094.56,0.00021643,2]
[377916315,1754613136133,-1864.15,0.00021643,2]
[377916316,1754613136143,-744.46,0.00021643,2]
[377916317,1754613136152,-574.05,0.00021643,2]
[377916318,1754613136161,-1856.19,0.00021643,2]
[377916319,1754613136173,-400.0,0.00021643,2]
[377916320,1754613136183,-2819.61,0.00021643,2]
[377916321,1754613136194,-963.74,0.00021643,2]
[377916322,1754613136204,-400.0,0.00021643,2]
[377916323,1754613136214,-400.0,0.00021643,2]
[377916324,1754613136225,-641.78,0.00021643,2]
[377916325,1754613136234,-400.0,0.00021643,2]
[377916326,1754613136245,-421.69,0.00021643,2]
[377916327,1754613136256,-1130.98,0.00021643,2]
[377916328,1754613136266,-711.52,0.00021643,2]
[377916329,1754613136278,-1482.22,0.00021643,2]
[377916330,1754613136288,-400.0,0.00021643,2]
[377916331,1754613136298,-1692.64,0.00021643,2]
[377916332,1754613136308,-400.0,0.00021643,2]
[377916333,1754613136318,-9960.13,0.00021643,2]
[377916334,1754613136331,-400.0,0.00021643,2]
[377916335,1754613136341,-561.73,0.00021643,2]
[377916336,1754613136351,-400.0,0.00021643,2]
[377916337,1754613136361,-500.34,0.00021643,2]
[377916338,1754613136371,-1592.3,0.00021643,2]
[377916339,1754613136383,-546.64,0.00021643,2]
[377916340,1754613136393,-606.66,0.00021643,2]
[377916341,1754613136403,-373.19130139,0.00021643,2]
[377916342,1754613136413,-1471.57,0.00021643,2]
[377916343,1754613136423,-400.0,0.00021643,2]
[377916344,1754613136433,-2507.14,0.00021643,2]
[377916345,1754613136443,-1316.78,0.00021643,2]
[377916346,1754613136454,-567.89,0.00021643,2]
[377916347,1754613136466,-1758.45,0.00021643,2]
[377916348,1754613136476,-400.0,0.00021643,2]
[377916349,1754613136486,-384.13928588,0.00021643,2]
[377916350,1754613136497,-1555.78,0.00021643,2]
[377916351,1754613136508,-1144.53,0.00021643,2]
[377916352,1754613136518,-1450.07,0.00021643,2]
[377916353,1754613136529,-416.35,0.00021643,2]
[377916354,1754613136540,-2230.25,0.00021643,2]
[377916355,1754613136551,-973.9,0.00021643,2]
[377916356,1754613136561,-400.0,0.00021643,2]
[377916357,1754613136809,-1577.14,0.00021643,2]
[377916358,1754613136821,-1658.19,0.00021643,2]
[377916359,1754613136830,-1949.39,0.00021643,2]
[377916360,1754613136840,-2189.36,0.00021643,2]
[377916361,1754613136852,-544.97,0.00021643,2]
[377916362,1754613136863,-400.0,0.00021643,2]
[377916363,1754613136875,-1736.77,0.00021643,2]
[377916364,1754613136887,-400.0,0.00021643,2]
[377916365,1754613136898,-723.41,0.00021643,2]
[377916366,1754613136908,-1506.04,0.00021643,2]
[377916367,1754613136918,-1668.74,0.00021643,2]
[377916368,1754613136927,-527.26,0.00021643,2]
[377916369,1754613136939,-1222.43,0.00021643,2]
[377916370,1754613136949,-2004.13,0.00021643,2]
[377916371,1754613136960,-1196.36,0.00021643,2]
[377916372,1754613136970,-444.47,0.00021643,2]
[377916373,1754613136980,-554.57,0.00021643,2]
[377916374,1754613136989,-1393.06,0.00021643,2]
[377916375,1754613136999,-2031.25,0.00021643,2]
[377916376,1754613137009,-1109.06,0.00021643,2]
[377916377,1754613137019,-624.86,0.00021643,2]
[377916378,1754613137030,-1290.07,0.00021643,2]
[377916379,1754613137040,-469.16,0.00021643,2]
[377916380,1754613137049,-2592.74,0.00021643,2]
[377916381,1754613137059,-2666.29,0.00021643,2]
[377916382,1754613137069,-1460.91,0.00021643,2]
[377916383,1754613137078,-2043.58,0.00021643,2]
[377916384,1754613137088,-1164.41,0.00021643,2]
[377916385,1754613137097,-1333.93,0.00021643,2]
[377916386,1754613137106,-694.8,0.00021643,2]
[377916387,1754613137116,-750.53,0.00021643,2]
[377916388,1754613137126,-631.92,0.00021643,2]
[377916389,1754613137136,-518.35,0.00021643,2]
[377916390,1754613137146,-1164.69,0.00021643,2]
[377916391,1754613137156,-2811.47,0.00021643,2]
[377916392,1754613137166,-465.25,0.00021643,2]
[377916393,1754613137177,-543.99,0.00021643,2]
[377916394,1754613137187,-1133.55,0.00021643,2]
[377916395,1754613137197,-680.98,0.00021643,2]
[377916396,1754613137207,-4407.12,0.00021643,2]
[377916397,1754613137217,-1818.01,0.00021643,2]
[377916398,1754613137227,-1288.12,0.00021643,2]
[377916399,1754613137237,-1714.38,0.00021643,2]
[377916400,1754613137247,-1275.65,0.00021643,2]
[377916401,1754613137257,-961.95,0.00021643,2]
[377916402,1754613137267,-1117.23,0.00021643,2]
[377916403,1754613137276,-453.21,0.00021643,2]
[377916404,1754613137286,-400.0,0.00021643,2]
[377916405,1754613137296,-1383.67,0.00021643,2]
[377916406,1754613137306,-400.0,0.00021643,2]
[377916407,1754613137315,-879.97,0.00021643,2]
[377916408,1754613137325,-633.58,0.00021643,2]
[377916409,1754613137335,-1989.79,0.00021643,2]
[377916410,1754613137344,-1604.94,0.00021643,2]
[377916411,1754613137354,-400.0,0.00021643,2]
[377916412,1754613137364,-1105.6,0.00021643,2]